[Event "CZE-ch U14 Open 2023"]
[Site "Teplice"]
[Date "2023.03.17"]
[Round "8.12"]
[White "Andrle, Filip"]
[Black "Macosek, Alex"]
[Result "1-0"]
[ECO "B10"]
[WhiteElo "1721"]
[BlackElo "1466"]
[Annotator "NA RC COMBH"]
[PlyCount "35"]
[EventDate "2023.03.09"]
[EventType "swiss"]
[EventCountry "CZE"]
[SourceTitle "playchess.com"]
[Source "ChessBase"]
[SourceQuality "1"]
[TimeControl "40/5400+30:1800+30"]

1. e4 {[%emt 0:00:04]} c6 {[%emt 0:00:11]} 2. Nc3 {[%emt 0:00:27]} d5 {[%emt 0:01:54]} 3. Nf3 {[%emt 0:00:22]} dxe4 {[%emt 0:00:14]} 4. Nxe4 {[%emt 0:00:10]} Bf5 {[%emt 0:00:05]} 5. Ng3 {[%emt 0:00:13]} Bg6 {[%emt 0:00:11]} 6. h4 {[%emt 0:00:22]} h6 {[%emt 0:00:52]} 7. Ne5 {[%emt 0:00:46]} Bh7 {[%emt 0:00:37]} 8. Qh5 {[%emt 0:01:08]} g6 {[%emt 0:01:57]} 9. Qf3 {[%emt 0:01:09]} Qd5 {[%emt 0:02:27]} 10. Qxd5 {[%emt 0:00:51]} cxd5 {[%emt 0:00:07]} 11. Bb5+ {[%emt 0:00:08]} Kd8 {[%emt 0:03:32]} 12. Nxf7+ {[%emt 0:00:14]} Kc7 {[%emt 0:00:22]} 13. Nxh8 {[%emt 0:00:37]} Bg7 {[%emt 0:00:27]} 14. Nf7 {[%emt 0:00:40]} a6 {[%emt 0:00:55]} 15. Ba4 {[%emt 0:00:58]} b5 {[%emt 0:05:41]} 16. Bb3 {[%emt 0:00:20]} e6 {[%emt 0:00:43]} 17. c3 {[%emt 0:02:19]} d4 {[%emt 0:10:21]} 18. Ng5 {[%emt 0:04:01]} 1-0

[Event "CZE-ch U14 Open 2023"]
[Site "Teplice"]
[Date "2023.03.18"]
[Round "9.1"]
[White "Juhanak, Daniel"]
[Black "Babula, Matej"]
[Result "1-0"]
[ECO "A17"]
[WhiteElo "1952"]
[BlackElo "1796"]
[Annotator "TA"]
[PlyCount "53"]
[EventDate "2023.03.09"]
[EventType "swiss"]
[EventCountry "CZE"]
[SourceTitle "playchess.com"]
[Source "ChessBase"]
[SourceQuality "1"]
[TimeControl "40/5400+30:1800+30"]

{[%evp 11,53,31,27,7,22,21,23,15,30,8,27,34,46,46,83,29,35,31,37,50,47,18,62,0,0,0,0,-20,0,-13,71,91,377,365,478,407,683,655,2242,2195,1889,1864,1596,323]} 1. c4 {[%emt 0:00:02]} Nf6 {[%emt 0:00:09]} 2. Nc3 {[%emt 0:00:01]} e6 {[%emt 0:00:10]} 3. Nf3 {[%emt 0:00:15]} Bb4 {[%emt 0:00:25]} 4. Qc2 {[%emt 0:00:14]} b6 {[%emt 0:00:41]} 5. a3 {[%emt 0:01:29]} Bxc3 {[%emt 0:00:17]} 6. Qxc3 {[%emt 0:00:08]} O-O {[%emt 0:00:55]} 7. e3 {[%emt 0:04:43] A17: English Opening: 1...Nf6 with ...Bb4.} Bb7 {[%emt 0:02:11]} 8. b4 {[%emt 0:09:16]} d6 {[%emt 0:04:48]} 9. d3 {[%emt 0:04:40] White has an edge.} e5 {[%emt 0:03:35]} 10. Bb2 {[%emt 0:01:22]} Nbd7 {[%emt 0:10:45]} 11. Be2 {[%emt 0:01:13]} Ne8 {[%emt 0:02:38]} 12. O-O {[%emt 0:04:25]} f5 {[%emt 0:03:25] [#]} 13. c5 {[%emt 0:14:43]} bxc5 $11 {[%emt 0:10:39]} 14. bxc5 {[%emt 0:00:19] Hoping for c6.} Bd5 {[%emt 0:05:54] [#]} 15. cxd6 $146 {[%emt 0:13:32]} ({Predecessor:} 15. Rac1 Nxc5 16. Nd2 Rb8 17. Ba1 Qd7 18. d4 exd4 19. Qxd4 Qf7 20. Rb1 Nf6 21. Rfc1 Nfe4 22. Rxb8 Rxb8 23. Bh5 Qxh5 24. Qxg7# {1-0 Ostenstad,B (2442)-Thanke,B (2114) NOR-ch Rapid 2023 (8)}) 15... cxd6 {[%emt 0:00:12]} 16. Rfc1 {[%emt 0:01:54]} Rf6 {[%emt 0:07:36] [#]} 17. e4 {[%emt 0:13:31]} fxe4 {[%emt 0:08:06]} 18. dxe4 {[%emt 0:00:12]} Bxe4 {[%emt 0:02:01]} 19. Ng5 {[%emt 0:01:43]} Bg6 {[%emt 0:00:57]} 20. Bd3 $1 {[%emt 0:11:49] Bxg6 would be deadly.} Qb6 {[%emt 0:22:35]} (20... Nf8 $11) 21. Qc4+ $16 {[%emt 0:06:05]} Kh8 $2 {[%emt 0:00:39][%mdl 8192] [#] This move loses the game for Black.} (21... Kf8 $16 22. Rc2 Rc8 23. Qxc8 Bxd3) 22. Bxg6 $1 $18 {[%emt 0:01:10] A strong pair of Bishops.} (22. Rc2 Rf4 23. Qd5 Bxd3 24. Qxd3 Ndf6 $15) 22... Qxf2+ {[%emt 0:00:34]} 23. Kh1 {[%emt 0:00:01]} hxg6 {[%emt 0:00:22] [#]} (23... Qf4 $142 24. Qxf4 Rxf4) 24. Rc3 $1 {[%emt 0:02:39] Threatening mate with Rh3+. White is clearly winning.} d5 {[%emt 0:04:15]} (24... Qf5 25. Rh3+) 25. Rh3+ {[%emt 0:00:13]} (25. Qxd5 $2 Qf1+ 26. Rxf1 Rxf1#) 25... Kg8 {[%emt 0:00:05]} 26. Qxd5+ {[%emt 0:00:17]} Kf8 {[%emt 0:00:03]} 27. Nh7+ $2 {[%emt 0:00:32] A cool game by Juhanak.   Weighted Error Value: White=0.11 (very precise) /Black=0.86} (27. Qxa8 $2 {gets mated.} Qf1+ {[%mdl 64] Back Rank} 28. Rxf1 Rxf1#) ({But not} 27. Rh8+ $2 Ke7 28. h3 (28. Qxa8 $2 {leads to mate.} Qf1+ {[%mdl 64] Back Rank} 29. Rxf1 Rxf1#) (28. Rg1 $2 Nc7 $19 {[%mdl 64] Discovered Attack}) 28... Nc7 $19 {[%mdl 64] Discovered Attack}) (27. Rf3 Qxf3 28. gxf3) 1-0

[Event "CZE-ch U14 Open 2023"]
[Site "Teplice"]
[Date "2023.03.18"]
[Round "9.2"]
[White "Zelba, Lukas"]
[Black "Ocelak, David"]
[Result "1-0"]
[ECO "E18"]
[WhiteElo "1912"]
[BlackElo "1608"]
[Annotator "TA"]
[PlyCount "87"]
[EventDate "2023.03.09"]
[EventType "swiss"]
[EventCountry "CZE"]
[SourceTitle "playchess.com"]
[Source "ChessBase"]
[SourceQuality "1"]
[TimeControl "40/5400+30:1800+30"]

{[%evp 13,87,14,18,16,0,-34,16,-6,-7,-13,25,41,46,-7,42,43,68,60,54,25,79,16,44,12,15,12,13,0,0,0,110,8,7,0,0,0,95,76,223,117,247,140,137,129,137,137,140,86,156,141,175,175,175,131,131,131,131,131,175,142,197,58,224,146,405,407,402,397,1300,1257,1187,1116,29978,29979,29978,29979]} 1. d4 {[%emt 0:03:24]} Nf6 {[%emt 0:02:26]} 2. Nf3 {[%emt 0:00:14]} e6 {[%emt 0:00:43]} 3. g3 {[%emt 0:01:16]} b6 {[%emt 0:00:30]} 4. Bg2 {[%emt 0:00:26]} Bb7 {[%emt 0:00:28]} 5. O-O {[%emt 0:00:54]} Be7 {[%emt 0:01:14]} 6. c4 {[%emt 0:00:46]} O-O {[%emt 0:01:45]} 7. Nc3 {[%emt 0:00:31]} d5 {[%emt 0:01:00]} 8. Bg5 {[%emt 0:08:38] E18: Queen's Indian: Old Main Line (4 g3 Bb7 5 Bg2 Be7 6 0-0 0-0 7 Nc3).} Nbd7 {[%emt 0:03:14]} 9. Qc2 {[%emt 0:02:55]} Rc8 {[%emt 0:04:14]} (9... dxc4 $15 10. Rad1 h6 11. Bxf6 Nxf6) 10. Rad1 {[%emt 0:11:55] The position is equal.} c6 {[%emt 0:03:52] [#]} 11. Rfe1 $146 {[%emt 0:06:49]} ({Predecessor:} 11. Bxf6 Bxf6 12. e4 dxe4 13. Nxe4 Qc7 14. Nfg5 h6 15. Nh7 Rfd8 16. Nhxf6+ Nxf6 17. Nxf6+ gxf6 18. c5 Rd7 19. Qe2 f5 20. Qh5 {½-½ Bold,A (1694)-Bohne,L (1940) Rheinland Pfalz op 7th 2015 (6)}) 11... Ne8 {[%emt 0:06:48]} (11... h6 $5 {[%cal Rh6g5]} 12. Bxf6 Nxf6 $11) 12. Bxe7 {[%emt 0:00:36]} Qxe7 {[%emt 0:00:29]} 13. Qb3 {[%emt 0:11:36]} (13. e4 $14) 13... Ndf6 {[%emt 0:04:58]} (13... Nd6 $11) 14. e4 $14 {[%emt 0:03:08]} Nc7 {[%emt 0:09:36]} 15. Nd2 {[%emt 0:07:24]} Rfd8 {[%emt 0:02:11]} 16. Nf1 {[%emt 0:00:52]} Qf8 {[%emt 0:11:01] [#]} (16... dxe4 $11 17. Nxe4 Nxe4 18. Bxe4 Ne8) 17. c5 {[%emt 0:07:02]} dxe4 {[%emt 0:13:55]} 18. cxb6 {[%emt 0:01:45]} axb6 {[%emt 0:06:37]} 19. Qxb6 {[%emt 0:00:46]} ({Much worse is} 19. Bxe4 Nxe4 20. Nxe4 Nb5 $15) 19... Ba8 {[%emt 0:01:49]} 20. Nxe4 {[%emt 0:01:09]} Nxe4 {[%emt 0:04:31]} 21. Bxe4 {[%emt 0:00:10]} Nd5 {[%emt 0:00:34]} (21... Nb5 $1 $11) 22. Bxd5 {[%emt 0:00:10]} (22. Qc5 $1 $16) 22... Rxd5 $11 {[%emt 0:00:33] Black is weak on the dark squares} 23. Qb3 {[%emt 0:03:16]} Rb8 {[%emt 0:02:27]} 24. Qc3 {[%emt 0:00:50]} Rh5 {[%emt 0:03:56]} (24... c5 $1 $11 {keeps the balance.}) 25. Re5 $36 {[%emt 0:01:43][%mdl 2048] White is on the roll.} Rb5 {[%emt 0:04:11]} (25... Rxe5 $16 26. dxe5 c5) 26. Rde1 {[%emt 0:00:38]} (26. a4 $18 Rd5 27. Rxh5 Rxh5 28. b4) 26... Rbxe5 {[%emt 0:02:04]} (26... c5 $16) 27. Rxe5 {[%emt 0:00:08]} (27. dxe5 $18 c5 28. Rc1) 27... Rxe5 $16 {[%emt 0:00:15]} 28. dxe5 {[%emt 0:00:10][%mdl 4096] Endgame KQB-KQN} c5 {[%emt 0:00:15]} 29. Nd2 {[%emt 0:02:04]} Qc8 {[%emt 0:02:10]} 30. f3 {[%emt 0:01:18]} (30. b3 $142) 30... Qc7 {[%emt 0:02:45]} ({Better is} 30... h5) 31. b4 {[%emt 0:02:16]} c4 {[%emt 0:03:04]} 32. Qxc4 {[%emt 0:01:46]} Qd7 {[%emt 0:02:10]} 33. Qc5 {[%emt 0:05:00][%cal Og1f1]} h6 {[%emt 0:00:29] [#]} 34. Qe3 {[%emt 0:01:15]} Qa4 {[%emt 0:00:30] [#]} 35. a3 $1 {[%emt 0:00:50]} Bd5 {[%emt 0:00:27]} 36. Kf2 {[%emt 0:01:38]} Qa6 {[%emt 0:00:38]} (36... Qd1 $16 37. Kg2 Bc6) 37. Ne4 {[%emt 0:02:54]} (37. g4 $18) 37... Qa4 $2 {[%emt 0:00:31]} (37... Bxe4 $1 $14 38. Qxe4 (38. fxe4 Qc4 $16) 38... Qxa3) 38. Qc3 {[%emt 0:01:44]} Qa7+ $2 {[%emt 0:00:25][%mdl 8192]} (38... Qd1 $16 {was called for.} 39. h4 Qh1) 39. Nc5 $18 {[%emt 0:00:17]} Bc6 {[%emt 0:00:36]} 40. a4 {[%emt 0:00:25]} Bxa4 {[%emt 0:00:31]} (40... Ba8 41. a5 Bc6) 41. Qa3 {[%emt 0:30:24]} Qb8 {[%emt 0:02:10]} 42. Qxa4 {[%emt 0:00:00]} Qxe5 {[%emt 0:00:15]} 43. Qa8+ {[%emt 0:00:00]} Kh7 {[%emt 0:00:09]} 44. Qe4+ {[%emt 0:00:00] Weighted Error Value: White=0.32/Black=0.70} 1-0

[Event "CZE-ch U14 Open 2023"]
[Site "Teplice"]
[Date "2023.03.18"]
[Round "9.3"]
[White "Jasso, Matej"]
[Black "Stary, Vojtech"]
[Result "1-0"]
[ECO "B40"]
[WhiteElo "1934"]
[BlackElo "1814"]
[Annotator "TA"]
[PlyCount "55"]
[EventDate "2023.03.09"]
[EventType "swiss"]
[EventCountry "CZE"]
[SourceTitle "playchess.com"]
[Source "ChessBase"]
[SourceQuality "1"]
[TimeControl "40/5400+30:1800+30"]

{[%evp 18,54,0,0,0,0,13,12,12,20,12,18,21,24,61,52,63,-126,341,310,2041,2035,1558,1106,1285,1239,1732,1711,29991,29992,29995,29996,29996,29997,29997,29998,29998,29999,29999]} 1. e4 c5 2. Nf3 e6 3. d3 Nc6 4. Qe2 Be7 5. g3 d5 6. Bg2 Nf6 7. O-O O-O 8. e5 Nd7 9. c4 d4 10. h4 Qc7 {[%cal Rd7e5] C00: French: Unusual White 2nd moves.} 11. Bf4 a6 {is the legacy move (11...b6).} 12. Nbd2 {[%cal Bb1d2,Bd2e4,Be4g5][%mdl 32]} b5 {[#] The position is equal.} 13. Nh2 $146 ({Predecessor:} 13. a3 Rb8 14. Rac1 bxc4 15. Nxc4 Nb6 16. Nd6 Nd5 17. Rxc5 Nxf4 18. gxf4 Bxd6 19. exd6 Qxd6 {1-0 Short,N (2688)-Tryggestad,A (2324) Helsingor Xtracon op 2017 (3)}) 13... Bb7 14. Ng4 Rfb8 15. Rfe1 Nb4 {Strongly threatening ...Bxg2.} 16. Ne4 $1 {Threatens to win with a3.} bxc4 {[#]} 17. Ngf6+ $2 gxf6 $2 {[%mdl 8192] A mistake that costs the game.} (17... Bxf6 $17 {and life is bright.} 18. exf6 e5) 18. exf6 $18 {[%mdl 64] aiming for Qg4+. Discovered Attack} e5 $2 (18... Ne5 $2 19. Bxe5 Qxe5 20. Qg4+ Kf8 21. Ng5 (21. fxe7+ Kxe7 22. dxc4 Nc2 $16) 21... Bxf6 22. Rxe5 Bxg5 23. Bxb7 $18) (18... Qxf4 19. gxf4 Nxf6 20. Nxf6+ Bxf6 21. Bxb7 (21. dxc4 d3 $16) 21... Rxb7 22. dxc4 d3) 19. Qg4+ ({Weaker is} 19. fxe7 f5 $16) 19... Kf8 20. Qg7+ Ke8 21. Ng5 Nxf6 22. Bxe5 {White wants to mate with Bh3.} Qb6 23. Bxf6 {White mates.} Nc6 {[#]} 24. Rxe7+ $1 {[%mdl 576] Decoy} Nxe7 25. Qxf7+ Kd8 26. Qxe7+ Kc8 27. Bh3+ Qe6 28. Qd8# {Beautiful play by Jasso!   Weighted Error Value: White=0.15 (very precise) /Black=0.93} 1-0

[Event "CZE-ch U14 Open 2023"]
[Site "Teplice"]
[Date "2023.03.18"]
[Round "9.4"]
[White "Popov, Roman"]
[Black "Martirosyan, David"]
[Result "1/2-1/2"]
[ECO "D31"]
[WhiteElo "2353"]
[BlackElo "1975"]
[Annotator "TA"]
[PlyCount "73"]
[EventDate "2023.03.09"]
[EventType "swiss"]
[EventCountry "CZE"]
[SourceTitle "playchess.com"]
[Source "ChessBase"]
[SourceQuality "1"]
[TimeControl "40/5400+30:1800+30"]

{[%evp 9,73,-8,33,28,30,31,20,14,26,30,33,7,6,-15,-15,-8,0,0,0,0,0,-47,-54,-91,-91,-91,-83,-129,-131,-144,-127,-134,-122,-120,-94,-93,-103,-98,-8,-7,-8,-8,-8,-8,-6,-2,-22,-10,-20,-29,8,8,137,142,158,162,162,72,156,75,85,8,8,8,8,0]} 1. d4 {[%emt 0:00:11]} d5 {[%emt 0:00:13]} 2. c4 {[%emt 0:00:40]} e6 {[%emt 0:00:22]} 3. Nc3 {[%emt 0:00:52]} a6 {[%emt 0:00:35]} 4. cxd5 {[%emt 0:08:55]} exd5 {[%emt 0:00:10]} 5. Qc2 {[%emt 0:03:02]} c6 {[%emt 0:02:51]} 6. Nf3 {[%emt 0:01:03] D31: Queen's Gambit Declined: Semi-Slav without ...Nf6 (+ Marshall Gambit and Noteboom) and Exchange Variation lines without ...Nf6.} Nf6 {[%emt 0:00:37]} 7. Bg5 {[%emt 0:01:36]} Be6 $1 {[%emt 0:00:12] 7...Be6 scores better than 7...Be7.} 8. e3 {[%emt 0:00:50]} Nbd7 {[%emt 0:00:31]} 9. Bd3 {[%emt 0:01:26]} Bd6 {[%emt 0:00:15]} 10. O-O {[%emt 0:00:50]} (10. Bf4 $5 {[%cal Rf4d6]} Qc7 11. Bxd6 Qxd6 12. O-O $11) 10... Qc7 {[%emt 0:01:13]} 11. Rab1 {[%emt 0:03:55]} h6 {[%emt 0:13:07]} 12. Bh4 {[%emt 0:02:54]} Bg4 {[%emt 0:00:54]} 13. Bg3 {[%emt 0:06:44]} Bxg3 {[%emt 0:00:46] [#]} 14. fxg3 $146 {[%emt 0:07:31]} ({Predecessor:} 14. hxg3 h5 15. b4 O-O 16. a4 Rac8 17. Rfc1 Rfe8 18. b5 axb5 19. axb5 c5 20. dxc5 Qxc5 {0-1 Begunov,K (2325)-Leiva Rodriguez,J (2389) Titled Tuesday intern op 23rd Aug Early blitz 2022 (2)}) 14... O-O {[%emt 0:02:03]} 15. e4 {[%emt 0:06:11]} (15. Rbc1 $11 {was preferrable.}) 15... dxe4 $15 {[%emt 0:01:46]} 16. Nxe4 {[%emt 0:01:29]} Nxe4 {[%emt 0:00:26]} 17. Bxe4 {[%emt 0:00:39]} Nf6 {[%emt 0:01:05] Dodges Bh7+} 18. Ne5 {[%emt 0:12:26]} (18. Bd3 $142) 18... Be6 $1 $17 {[%emt 0:01:33]} 19. Bd3 {[%emt 0:12:10]} Bxa2 {[%emt 0:04:02]} 20. Rbe1 {[%emt 0:03:13]} Be6 {[%emt 0:00:22]} 21. Qd2 {[%emt 0:00:49][%cal Of1f6] aiming for Rxf6!} Ng4 {[%emt 0:04:03]} 22. Qf4 {[%emt 0:03:52]} Nxe5 {[%emt 0:01:42]} 23. Rxe5 {[%emt 0:00:37] [#]} Qd6 {[%emt 0:06:35]} (23... Rad8 $1 $17 {...Qb6 is the strong threat.} 24. Qe4 g6) 24. Qe4 $1 $132 {[%emt 0:01:15][%csl Gd3][%cal Re4h7][%mdl 2048] White puts up resistance} f5 $1 {[%emt 0:01:35]} 25. Qe3 {[%emt 0:01:39]} Rf6 {[%emt 0:03:12]} 26. Bxf5 {[%emt 0:02:09]} Bxf5 {[%emt 0:00:43]} 27. Rfxf5 {[%emt 0:01:25]} Rxf5 {[%emt 0:00:08]} 28. Rxf5 {[%emt 0:00:08][%mdl 4096] Endgame KQR-KQR} Rd8 {[%emt 0:00:12]} 29. Rf4 {[%emt 0:01:06]} g5 {[%emt 0:07:21]} 30. Re4 {[%emt 0:02:03]} Kf7 {[%emt 0:06:03] [#]} (30... Rd7 $11 {keeps the balance.}) 31. h4 $1 $16 {[%emt 0:02:43]} Qf6 {[%emt 0:02:38]} 32. Qb3+ {[%emt 0:03:09]} Kf8 {[%emt 0:02:20]} 33. Qb4+ {[%emt 0:03:40]} (33. Qxb7 $18 {has better winning chances.} Re8 34. Qb4+ Kf7 35. Qc4+ (35. hxg5 hxg5 36. Qb3+ Re6 $16) 35... Kf8 36. Qc5+ Kf7 37. Re5 (37. hxg5 hxg5 38. Qc4+ Kf8 $16) 37... Rxe5 38. dxe5) 33... Rd6 {[%emt 0:00:22]} (33... Qd6 $142 34. Qxb7 Re8 35. Rxe8+ Kxe8) 34. hxg5 {[%emt 0:02:06]} ({White should try} 34. Qxb7 {Strongly threatening Re3.} Re6 35. Qc8+ Kf7 36. Rxe6 (36. hxg5 hxg5 37. Rxe6 Qxe6 $16) 36... Qxe6 37. Qxa6) 34... hxg5 {[%emt 0:00:38]} 35. Qc5 {[%emt 0:01:09]} ({Better is} 35. Qxb7 $16 {Hoping for Qc7.} Re6 36. Rxe6 (36. Qc8+ Kf7 $16) 36... Qxe6 37. Qxa6) 35... Kg7 $11 {[%emt 0:07:42]} 36. Re5 {[%emt 0:00:53]} Kh6 {[%emt 0:01:40]} 37. b4 {[%emt 0:02:13] Weighted Error Value: White=0.16 (very precise) /Black=0.18 (very precise)} 1/2-1/2

[Event "CZE-ch U14 Open 2023"]
[Site "Teplice"]
[Date "2023.03.18"]
[Round "9.5"]
[White "Zrubek, Dan"]
[Black "Roubal, Matyas"]
[Result "1/2-1/2"]
[ECO "B35"]
[WhiteElo "1752"]
[BlackElo "1948"]
[Annotator "TA"]
[PlyCount "68"]
[EventDate "2023.03.09"]
[EventType "swiss"]
[EventCountry "CZE"]
[SourceTitle "playchess.com"]
[Source "ChessBase"]
[SourceQuality "1"]
[TimeControl "40/5400+30:1800+30"]

{[%evp 14,68,26,24,21,10,19,10,21,8,21,9,41,32,75,58,116,99,127,89,111,112,119,63,104,70,52,72,135,135,134,143,200,82,94,84,72,78,280,255,215,48,58,42,156,181,176,4,4,0,0,3,10,0,3,9,79]} 1. e4 {[%emt 0:00:03]} c5 {[%emt 0:00:08]} 2. Nf3 {[%emt 0:00:06]} Nc6 {[%emt 0:00:08]} 3. d4 {[%emt 0:00:16]} cxd4 {[%emt 0:00:06]} 4. Nxd4 {[%emt 0:00:06]} g6 {[%emt 0:00:05]} 5. Nc3 {[%emt 0:00:52]} Bg7 {[%emt 0:00:06]} 6. Be3 {[%emt 0:00:37]} Nf6 {[%emt 0:00:06]} 7. Bc4 {[%emt 0:00:29]} O-O {[%emt 0:00:07]} 8. Bb3 {[%emt 0:01:30]} Re8 {[%emt 0:00:26] B35: Sicilian: Accelerated Dragon with 5 Nc3: main line.} 9. O-O {[%emt 0:05:35]} d6 {[%emt 0:01:12]} 10. h3 {[%emt 0:01:24]} Na5 {[%emt 0:14:51]} 11. f4 {[%emt 0:05:18] 11.Qd2 gains popularity.} Nxb3 {[%emt 0:03:51]} 12. axb3 {[%emt 0:05:22]} a6 {[%emt 0:03:45]} 13. Qf3 {[%emt 0:05:51] [#]} e5 $146 {[%emt 0:03:21]} ({Predecessor:} 13... Rb8 14. e5 Nd7 15. e6 Nf6 16. f5 fxe6 17. fxe6 Rf8 18. Qe2 Qc7 19. g4 b5 20. g5 Nh5 21. Nd5 Qb7 22. Rxf8+ Bxf8 23. Qf3 Bg7 24. Qf7+ Kh8 25. Qe8+ {1-0 Amdouni,Z (2218)-Temesgen,A (2050) Online Olym Div3 B rapid 2021 (7.2)}) 14. Nde2 {[%emt 0:01:14]} h6 {[%emt 0:10:58]} (14... Qc7 $14) 15. Rad1 {[%emt 0:03:39]} Qe7 {[%emt 0:07:09]} 16. Ng3 {[%emt 0:17:17]} b5 {[%emt 0:05:19] [#]} 17. f5 $1 {[%emt 0:01:50]} Kh7 {[%emt 0:06:31]} 18. h4 {[%emt 0:21:20]} ({White should play} 18. Nd5 $16 Nxd5 19. Rxd5) 18... Rf8 {[%emt 0:03:47]} 19. Nd5 {[%emt 0:04:17]} Nxd5 {[%emt 0:00:05]} 20. Rxd5 {[%emt 0:00:53] Strongly threatening f6.} Qc7 {[%emt 0:01:30]} (20... Qxh4 $142 21. Rxd6 a5) 21. Rfd1 $16 {[%emt 0:13:33] White is much more active. The black rooks are badly placed.} Rd8 {[%emt 0:00:12]} 22. Qf2 {[%emt 0:01:59]} ({Resist} 22. f6 $6 Bf8 $14) 22... Rd7 {[%emt 0:04:24]} (22... Rb8 $16 23. b4 Bf8) 23. Qd2 {[%emt 0:04:53]} (23. fxg6+ $18 {is more deadly.} fxg6 24. h5) 23... Bf8 {[%emt 0:00:32]} 24. fxg6+ {[%emt 0:01:57]} fxg6 {[%emt 0:00:01]} 25. h5 {[%emt 0:00:19]} Rf7 $2 {[%emt 0:02:13] [#]} (25... gxh5 $16 {is a better defense.} 26. Nf5 (26. Nxh5 Rf7 $11) 26... Bb7) 26. hxg6+ $18 {[%emt 0:00:56]} Kxg6 {[%emt 0:00:01]} 27. Qe2 $2 {[%emt 0:00:49]} ({Better is} 27. Bxh6 $18 {Threatens to win with Qg5+.} Qb6+ 28. Be3) 27... Be6 $14 {[%emt 0:02:14]} 28. R5d2 {[%emt 0:01:10]} (28. Rxd6 {keeps more tension.} Bxd6 29. Qh5+ Kh7 30. Qxh6+ Kg8 31. Qxe6 Bc5 32. Bxc5 Qxc5+ 33. Kh2) 28... Rd8 {[%emt 0:02:43]} (28... Qd7 $14) 29. Qh5+ $16 {[%emt 0:00:39]} Kh7 {[%emt 0:00:01]} 30. Rf1 $2 {[%emt 0:00:11]} (30. Nf5 $18 {[%cal Rf5h6]} Bxf5 31. exf5) 30... Rxf1+ $11 {[%emt 0:00:49] The position is equal.} 31. Kxf1 {[%emt 0:00:08] next Rf2 is good for White.} Qf7+ {[%emt 0:00:09]} 32. Qxf7+ {[%emt 0:00:09]} Bxf7 {[%emt 0:00:02]} 33. Nf5 {[%emt 0:00:36]} Be6 {[%emt 0:02:30]} 34. g4 {[%emt 0:00:42]} Bxf5 {[%emt 0:00:52] Weighted Error Value: White=0.30/Black=0.34} (34... d5 $11 {remains equal.}) 1/2-1/2

[Event "CZE-ch U14 Open 2023"]
[Site "Teplice"]
[Date "2023.03.18"]
[Round "9.6"]
[White "Topencik, Bruno"]
[Black "Veverka, Vladimir"]
[Result "1/2-1/2"]
[ECO "E16"]
[WhiteElo "1844"]
[BlackElo "1735"]
[Annotator "NA RC COMBH"]
[PlyCount "81"]
[EventDate "2023.03.09"]
[EventType "swiss"]
[EventCountry "CZE"]
[SourceTitle "playchess.com"]
[Source "ChessBase"]
[SourceQuality "1"]
[TimeControl "40/5400+30:1800+30"]

1. d4 {[%emt 0:00:02]} Nf6 {[%emt 0:00:44]} 2. c4 {[%emt 0:00:09]} e6 {[%emt 0:00:08]} 3. Nf3 {[%emt 0:00:05]} Bb4+ {[%emt 0:00:07]} 4. Bd2 {[%emt 0:00:12]} Qe7 {[%emt 0:00:33]} 5. g3 {[%emt 0:00:27]} Nc6 {[%emt 0:00:44]} 6. Bg2 {[%emt 0:00:13]} Bxd2+ {[%emt 0:00:51]} 7. Nbxd2 {[%emt 0:00:16]} d6 {[%emt 0:00:41]} 8. O-O {[%emt 0:00:13]} O-O {[%emt 0:00:30]} 9. e4 {[%emt 0:01:29]} e5 {[%emt 0:00:26]} 10. d5 {[%emt 0:00:17]} Nb8 {[%emt 0:00:08]} 11. Ne1 {[%emt 0:00:48]} Ng4 {[%emt 0:02:57]} 12. h3 {[%emt 0:04:32]} Nh6 {[%emt 0:00:31]} 13. Nd3 {[%emt 0:01:54]} b6 {[%emt 0:05:00]} 14. f4 {[%emt 0:06:01]} Nd7 {[%emt 0:04:04]} 15. f5 {[%emt 0:03:07]} g6 {[%emt 0:06:50]} 16. g4 {[%emt 0:10:31]} g5 {[%emt 0:03:29]} 17. Qe2 {[%emt 0:03:54]} f6 {[%emt 0:01:26]} 18. Kf2 {[%emt 0:03:41]} Nf7 {[%emt 0:02:53]} 19. Rh1 {[%emt 0:02:55]} Kg7 {[%emt 0:01:15]} 20. b4 {[%emt 0:10:03]} a5 {[%emt 0:02:14]} 21. a3 {[%emt 0:01:51]} (21. b5 $16) 21... axb4 {[%emt 0:00:57]} 22. axb4 {[%emt 0:00:18]} Bb7 {[%emt 0:07:31]} 23. Nb3 {[%emt 0:03:05]} Rxa1 {[%emt 0:01:31]} 24. Rxa1 {[%emt 0:00:06]} Ra8 {[%emt 0:00:11]} 25. Rxa8 {[%emt 0:01:45]} Bxa8 {[%emt 0:00:58]} 26. Qa2 {[%emt 0:02:17]} Qf8 {[%emt 0:02:33]} 27. Qa7 {[%emt 0:02:58]} Qb8 {[%emt 0:03:08]} 28. Qa4 {[%emt 0:05:23]} b5 {[%emt 0:04:53]} 29. Qxb5 {[%emt 0:10:50]} Qxb5 {[%emt 0:00:12]} 30. cxb5 {[%emt 0:00:12]} Nh6 {[%emt 0:06:48]} 31. Na5 {[%emt 0:11:11]} Kf7 {[%emt 0:00:31]} 32. Bf3 {[%emt 0:00:48]} Ng8 {[%emt 0:01:03]} 33. Nb2 {[%emt 0:01:33]} Nb6 {[%emt 0:01:51]} 34. Ke3 $18 {[%emt 0:03:41]} Ke8 {[%emt 0:00:49]} 35. Nb3 {[%emt 0:00:20]} Ne7 {[%emt 0:04:01]} 36. Be2 {[%emt 0:00:24]} h6 {[%emt 0:01:01]} 37. Bd3 {[%emt 0:00:41]} Kd8 {[%emt 0:00:51]} 38. Nd2 {[%emt 0:00:27]} Kd7 {[%emt 0:00:52]} 39. Ndc4 {[%emt 0:00:37]} Nec8 {[%emt 0:01:31]} 40. Na5 {[%emt 0:00:25]} Ke8 {[%emt 0:02:54]} 41. Nb3 {[%emt 0:30:55]} 1/2-1/2